[Event "Azerbaijan Men Championship 2024"]
[Site "Baku"]
[Date "2024.04.16"]
[Round "6.9"]
[White "Abdulov, Orkhan"]
[Black "Ahmad, Khagan"]
[Result "0-1"]
[ECO "B90"]
[WhiteElo "2401"]
[BlackElo "2321"]
[Annotator "TA"]
[PlyCount "102"]
[EventDate "2024.04.11"]
[EventType "swiss"]
[EventCountry "AZE"]
[SourceTitle "playchess.com"]
[Source "ChessBase"]
[SourceQuality "1"]
[TimeControl "40/5400+30:1800+30"]

{[%evp 18,102,31,21,11,9,13,-22,-21,-21,-21,-43,-53,-49,-24,-26,-27,-24,-16,-38,-45,-29,-17,-18,-16,-38,-13,-21,-33,-29,-26,-27,-23,-22,-21,-24,-20,-24,-17,-28,-17,-64,-58,-76,-76,-77,-25,-51,-10,-70,0,0,0,0,0,-70,-70,-70,-70,-70,-70,-70,-70,-70,-70,-70,-70,-85,-85,-441,-426,-426,-404,-306,-70,-1383,-1321,-956,-412,-980,-950,-811,-599,-5581,-5695,-12826,-6123]} 1. e4 {[%emt 0:00:04]} c5 {[%emt 0:00:08]} 2. Nf3 {[%emt 0:00:04]} d6 {[%emt 0:00:04]} 3. d4 {[%emt 0:00:27]} cxd4 {[%emt 0:00:07]} 4. Nxd4 {[%emt 0:00:04]} Nf6 {[%emt 0:00:05]} 5. Nc3 {[%emt 0:00:04]} a6 {[%emt 0:00:04]} 6. Be3 {[%emt 0:00:47]} e5 {[%emt 0:00:08]} 7. Nb3 {[%emt 0:00:09]} Be7 {[%emt 0:00:10]} 8. h3 {[%emt 0:00:21] B90: Sicilian Najdorf: Unusual White 6th moves, 6 Be3 Ng4 and 6 Be3 e5.} h6 {[%emt 0:00:14]} 9. g4 {[%emt 0:08:07]} b5 {[%emt 0:00:21] Nowadays more popular than 9...Nbd7.} 10. Nd5 {[%emt 0:09:31]} Bb7 {[%emt 0:00:43]} 11. Bb6 {[%emt 0:06:23]} Qc8 {[%emt 0:00:19]} 12. Nxf6+ $146 {[%emt 0:07:45]} (12. Nc7+ $5 Kf8 13. f3 $11) ({Predecessor:} 12. Nxe7 Kxe7 13. f3 Nbd7 14. Ba5 Nc5 15. Qd2 Qe6 16. O-O-O Rhc8 17. Kb1 Nxb3 18. axb3 {1-0 Shirov,A (2664)-Van Foreest,J (2678) Online Olym Div2 C rapid 2020 (9.2)}) 12... Bxf6 {[%emt 0:03:56]} 13. Bg2 {[%emt 0:02:14]} (13. Qxd6 Bxe4 14. Rg1 Be7 15. Qxe5 Bxc2 $15) 13... Nd7 {[%emt 0:00:21]} 14. Qxd6 {[%emt 0:13:08]} Be7 {[%emt 0:02:45]} 15. Qc7 {[%emt 0:03:19]} Qxc7 {[%emt 0:00:15]} 16. Bxc7 {[%emt 0:00:01]} Rc8 {[%emt 0:00:02]} 17. Ba5 {[%emt 0:01:49]} Rxc2 {[%emt 0:00:08]} 18. Rc1 {[%emt 0:08:21]} Rxc1+ {[%emt 0:00:21]} (18... Rxb2 19. Rc7 Bd8 (19... Rb1+ $2 20. Ke2 $18) 20. Rxb7 $16) 19. Nxc1 {[%emt 0:00:01]} O-O {[%emt 0:13:19]} 20. Nd3 {[%emt 0:04:35]} Rc8 {[%emt 0:03:08]} 21. O-O {[%emt 0:03:25]} Rc4 {[%emt 0:05:15]} 22. Rc1 {[%emt 0:02:16]} Rxc1+ {[%emt 0:14:23]} (22... Bxe4 $2 23. Rxc4 bxc4 24. Bxe4 $18) 23. Nxc1 {[%emt 0:00:01]} Nc5 {[%emt 0:00:07]} 24. Bb4 {[%emt 0:04:08]} Kf8 {[%emt 0:00:06]} (24... Bxe4 $2 25. Bxe4 Nxe4 26. Bxe7 $18) 25. f3 {[%emt 0:00:30]} Na4 {[%emt 0:03:36]} 26. Bxe7+ {[%emt 0:01:30]} Kxe7 {[%emt 0:00:02]} 27. Nd3 {[%emt 0:01:18]} Kd6 {[%emt 0:00:19]} 28. Kf2 {[%emt 0:00:17]} Bc8 {[%emt 0:00:06]} 29. Ke3 {[%emt 0:05:53]} (29. Bf1 $11 {is superior.}) 29... Be6 $15 {[%emt 0:01:40]} 30. b3 {[%emt 0:03:25]} Nc3 {[%emt 0:00:37]} 31. Nc1 {[%emt 0:00:10]} g5 {[%emt 0:05:17]} (31... Kc5 $17) 32. Bf1 {[%emt 0:01:45]} a5 {[%emt 0:00:49]} 33. a3 {[%emt 0:02:09]} (33. Bd3 $11) 33... a4 {[%emt 0:20:53]} (33... Nb1 $1 $15 34. Bxb5 Nxa3) 34. bxa4 $11 {[%emt 0:03:51]} bxa4 {[%emt 0:00:04]} 35. Bd3 {[%emt 0:00:33]} Kc5 {[%emt 0:03:30]} 36. Bc2 {[%emt 0:02:20]} ({White should play} 36. Kd2 $11 Kd4 37. Ne2+ Nxe2 38. Bxe2) 36... Bc4 $15 {[%emt 0:01:49]} 37. Nd3+ {[%emt 0:01:17]} Bxd3 {[%emt 0:00:16]} 38. Kxd3 {[%emt 0:00:12]} Nb5 {[%emt 0:00:01]} 39. Bxa4 {[%emt 0:00:18]} Nxa3 {[%emt 0:00:03]} 40. Bb3 {[%emt 0:00:00]} f6 {[%emt 0:00:00]} 41. Ba4 {[%emt 0:16:00]} Kb4 {[%emt 0:00:19]} 42. Bd7 {[%emt 0:00:28]} Nc4 {[%emt 0:00:23]} 43. Be6 $2 {[%emt 0:03:00][%mdl 8192]} (43. Bc8 $17) 43... Nd6 {[%emt 0:00:48]} 44. Bd7 {[%emt 0:00:41] [#]} Nb7 $1 {[%emt 0:00:03]} 45. Ke3 {[%emt 0:01:06]} Kc3 $2 {[%emt 0:00:31]} (45... Nc5 $19 46. Be8 Nb3) 46. Kf2 $2 {[%emt 0:00:48][%mdl 8192]} (46. Be6 $15) 46... Nc5 {[%emt 0:00:19]} 47. Bb5 {[%emt 0:00:26]} Ne6 {[%emt 0:00:30]} (47... Kd2 $142 48. f4 gxf4 (48... Nxe4+ $2 49. Kf3 $19) (48... exf4 $2 49. Be8 $19)) 48. Kg3 {[%emt 0:02:39]} (48. Ke3 $142 Kb3 49. Kd3) 48... Nd4 $19 {[%emt 0:02:06]} 49. Ba6 {[%emt 0:03:04]} Kd2 {[%emt 0:00:11]} 50. h4 {[%emt 0:01:24]} Ke3 {[%emt 0:00:05]} 51. hxg5 {[%emt 0:02:21]} hxg5 {[%emt 0:00:04]} (51... Nxf3 $2 {loses.} 52. g6 (52. gxf6 Ng5 $18) 52... f5 53. g7 (53. exf5 Ng5 $18) (53. gxf5 Nd4 $18) 53... f4+ 54. Kg2 $18) 0-1

[Event "Azerbaijan Men Championship 2024"]
[Site "Baku"]
[Date "2024.04.16"]
[Round "6.10"]
[White "Aslanov, Umid"]
[Black "Sevdimaliyev, Urfan"]
[Result "1/2-1/2"]
[ECO "B33"]
[WhiteElo "2239"]
[BlackElo "2320"]
[Annotator "TA"]
[PlyCount "134"]
[EventDate "2024.04.11"]
[EventType "swiss"]
[EventCountry "AZE"]
[SourceTitle "playchess.com"]
[Source "ChessBase"]
[SourceQuality "1"]
[TimeControl "40/5400+30:1800+30"]

{[%evp 35,134,11,40,32,40,13,10,10,21,0,6,-57,-47,-67,-64,-69,-71,-127,-136,-109,0,0,8,15,18,42,133,0,0,0,0,-29,-29,-36,22,12,8,8,8,-98,-48,-554,1878,1612,1750,1659,1899,1740,29961,29962,29964,29964,29963,29963,29963,29964,29961,29962,29967,29968,29964,29968,29965,29966,29941,152,152,141,141,141,141,141,141,141,141,141,141,141,141,141,141,141,141,129,129,129,129,129,129,129,129,129,141,141,141,51,78,51,51,52,63]} 1. e4 {[%emt 0:00:01]} c5 {[%emt 0:01:32]} 2. Nf3 {[%emt 0:00:04]} Nc6 {[%emt 0:00:15]} 3. d4 {[%emt 0:00:06]} cxd4 {[%emt 0:00:04]} 4. Nxd4 {[%emt 0:00:02]} Nf6 {[%emt 0:00:17]} 5. Nc3 {[%emt 0:00:05]} e5 {[%emt 0:00:04]} 6. Ndb5 {[%emt 0:00:10]} d6 {[%emt 0:00:07]} 7. Bg5 {[%emt 0:00:08]} a6 {[%emt 0:00:22]} 8. Na3 {[%emt 0:00:04]} b5 {[%emt 0:00:07]} 9. Nd5 {[%emt 0:00:08]} Be7 {[%emt 0:00:27]} 10. Bxf6 {[%emt 0:00:05]} Bxf6 {[%emt 0:00:04]} 11. c3 {[%emt 0:00:20]} Bg5 {[%emt 0:00:32]} 12. Nc2 {[%emt 0:00:13]} Ne7 {[%emt 0:00:55]} 13. a4 {[%emt 0:03:26]} bxa4 {[%emt 0:00:23]} 14. Ncb4 {[%emt 0:01:12]} O-O {[%emt 0:02:16]} 15. Rxa4 {[%emt 0:11:23]} a5 {[%emt 0:04:18]} 16. Nxe7+ {[%emt 0:02:54]} Qxe7 {[%emt 0:00:13]} 17. h4 {[%emt 0:02:43]} Bh6 {[%emt 0:03:11]} 18. Bc4 {[%emt 0:03:54]} Bd7 {[%emt 0:08:09]} 19. Nd5 {[%emt 0:00:30]} Qd8 {[%emt 0:00:57]} 20. Ra1 {[%emt 0:02:20]} Kh8 {[%emt 0:14:04]} 21. Qe2 {[%emt 0:12:25]} a4 {[%emt 0:08:44]} 22. g4 {[%emt 0:03:40]} Bf4 {[%emt 0:04:27]} 23. g5 {[%emt 0:04:19]} (23. Kf1 $11) 23... Rb8 $15 {[%emt 0:04:31]} 24. Rd1 {[%emt 0:05:18]} Qc8 {[%emt 0:07:09]} 25. Nxf4 {[%emt 0:10:44]} exf4 {[%emt 0:00:13]} 26. Rd4 {[%emt 0:11:06]} (26. f3 $142) 26... d5 $1 $17 {[%emt 0:18:32]} 27. exd5 {[%emt 0:07:34]} Re8 {[%emt 0:02:35]} (27... a3 $1 $17 28. b4 Re8) 28. Re4 $11 {[%emt 0:00:06]} Rxe4 29. Qxe4 {[%emt 0:00:09]} Rxb2 {[%emt 0:08:30]} 30. O-O {[%emt 0:01:12]} a3 {[%emt 0:06:56]} (30... Bh3 $6 31. Re1 h6 (31... Qg4+ $2 32. Kh1 $18) 32. Qxf4 $16) ({Black should play} 30... f3 $14) 31. Bd3 {[%emt 0:01:11]} (31. Ra1 $1 $16) 31... g6 $11 {[%emt 0:00:14]} (31... Qxc3 32. Qxh7#) 32. h5 {[%emt 0:00:56]} Bb5 {[%emt 0:05:13]} 33. c4 {[%emt 0:05:30]} Qg4+ {[%emt 0:00:37]} 34. Qg2 {[%emt 0:00:04]} Qxg2+ {[%emt 0:00:39]} (34... Bd7 $15 35. Qxg4 Bxg4) 35. Kxg2 $11 {[%emt 0:00:03]} Ba6 {[%emt 0:00:43]} 36. h6 {[%emt 0:02:01]} Kg8 $1 {[%emt 0:00:12]} 37. Rd1 {[%emt 0:00:43]} (37. Ra1 $11 Rb3 (37... a2 38. Kf3 $11) 38. Bc2) 37... a2 $17 {[%emt 0:00:45]} 38. Be4 $2 {[%emt 0:10:20][%mdl 8192] [#]} (38. Ra1 $1 $15) 38... Rb1 $4 {[%emt 0:00:40][%mdl 8192]} (38... Rd2 $1 $19 {[%mdl 512]} 39. Ra1 Bxc4) 39. Rxb1 $18 {[%emt 0:00:58]} (39. Bxb1 $2 a1=Q (39... a1=B $2 40. d6 $18) 40. Re1 Kf8 $19 (40... Bxc4 41. Re8#) (40... f3+ $2 41. Kxf3 Kf8 42. d6 $19)) 39... axb1=Q {[%emt 0:00:04]} 40. Bxb1 {[%emt 0:00:00]} Bxc4 {[%emt 0:00:00]} 41. Be4 {[%emt 0:00:11]} Be2 {[%emt 0:01:24]} 42. d6 {[%emt 0:00:15]} Kf8 {[%emt 0:04:07]} 43. Bc6 {[%emt 0:00:12]} Bg4 {[%emt 0:00:16]} 44. f3 {[%emt 0:01:06]} Be6 {[%emt 0:02:59]} 45. Kf2 {[%emt 0:00:04]} Bc4 {[%emt 0:10:33]} 46. Ke1 {[%emt 0:00:29]} Be6 {[%emt 0:00:13]} 47. Kd2 {[%emt 0:01:30]} f6 {[%emt 0:02:00]} 48. d7 {[%emt 0:01:47]} Ke7 {[%emt 0:04:00]} 49. gxf6+ {[%emt 0:00:09]} Kd8 {[%emt 0:00:02]} 50. Kd3 $2 {[%emt 0:00:06]} (50. Kc3 {mates} Bxd7 51. f7 Ke7 52. Bxd7 Kxf7 53. Kd4 g5 54. Ke5 g4 55. Bxg4 (55. Kxf4 gxf3 56. Kf5 f2 $18)) 50... Bxd7 $16 {[%emt 0:00:36]} 51. Bd5 {[%emt 0:02:43]} ({Don't take} 51. f7 $6 Bf5+ 52. Kd4 Ke7 $11) 51... Ke8 {[%emt 0:04:51]} 52. Ke4 {[%emt 0:00:46]} Kf8 {[%emt 0:02:10]} 53. Kxf4 {[%emt 0:00:25]} ({Of course not} 53. f7 $6 g5 $11) 53... Be8 {[%emt 0:00:07]} 54. Ke5 {[%emt 0:00:30]} Bf7 {[%emt 0:01:56]} 55. Be4 {[%emt 0:01:22]} Kg8 {[%emt 0:00:35]} 56. Kd6 {[%emt 0:00:15]} Kf8 {[%emt 0:00:18]} 57. Kd7 {[%emt 0:00:43]} Be8+ {[%emt 0:00:16]} 58. Kd8 {[%emt 0:00:32]} Bf7 {[%emt 0:00:08]} 59. f4 {[%emt 0:00:06]} Be8 {[%emt 0:00:08]} 60. Bd3 {[%emt 0:01:12]} Bf7 {[%emt 0:00:30]} 61. Kd7 {[%emt 0:00:04]} Be8+ {[%emt 0:00:11]} 62. Ke6 {[%emt 0:00:04]} Bf7+ {[%emt 0:00:04]} 63. Ke5 {[%emt 0:00:03]} Be8 {[%emt 0:00:18]} 64. f5 {[%emt 0:02:00]} g5 {[%emt 0:00:18] [#]} 65. Bc4 {[%emt 0:00:15]} (65. f7 $1 $16 {[%cal Rf7e8]} Bxf7 66. Be2) 65... Bf7 {[%emt 0:00:52]} 66. Be6 {[%emt 0:00:42]} Bh5 {[%emt 0:00:12]} 67. Ke4 {[%emt 0:01:38]} Bd1 {[%emt 0:00:23]} 1/2-1/2

[Event "Azerbaijan Men Championship 2024"]
[Site "Baku"]
[Date "2024.04.17"]
[Round "7.1"]
[White "Rasulov, Vugar"]
[Black "Muradli, Mahammad"]
[Result "1/2-1/2"]
[ECO "B50"]
[WhiteElo "2551"]
[BlackElo "2555"]
[Annotator "TA"]
[PlyCount "110"]
[EventDate "2024.04.11"]
[EventType "swiss"]
[EventCountry "AZE"]
[SourceTitle "playchess.com"]
[Source "ChessBase"]
[SourceQuality "1"]
[TimeControl "40/5400+30:1800+30"]

{[%evp 24,110,57,38,41,41,47,45,38,35,60,20,58,50,66,28,57,49,72,39,50,48,59,59,51,30,25,28,26,7,14,20,20,16,23,28,15,20,16,9,9,10,10,25,27,26,27,8,51,21,68,66,70,72,62,59,92,49,58,58,106,37,41,28,39,38,33,26,30,5,2,4,7,0,0,0,0,0,0,0,0,0,0,0,0,0,0,0,0]} 1. e4 {[%emt 0:00:05]} c5 {[%emt 0:05:23]} 2. Nf3 {[%emt 0:00:13]} d6 {[%emt 0:00:08]} 3. c3 {[%emt 0:00:13]} Nf6 {[%emt 0:01:55]} 4. Be2 {[%emt 0:00:09]} g6 {[%emt 0:07:34]} 5. O-O {[%emt 0:00:53]} Bg7 {[%emt 0:00:18]} 6. Bb5+ {[%emt 0:00:07]} Nbd7 {[%emt 0:08:25]} 7. Re1 {[%emt 0:01:20]} a6 {[%emt 0:06:20] 7...0-0 is not played anymore.} 8. Bf1 {[%emt 0:00:14]} Ne5 {[%emt 0:08:48] B50: Sicilian: 2...d6, Miscellaneous.} 9. d4 {[%emt 0:01:56]} Nxf3+ {[%emt 0:00:49]} 10. Qxf3 {[%emt 0:00:03]} Nd7 {[%emt 0:00:24]} 11. Be3 {[%emt 0:05:14]} O-O {[%emt 0:01:25]} 12. Nd2 {[%emt 0:00:06]} Qc7 $146 {[%emt 0:02:15]} ({Predecessor:} 12... Rb8 13. Rad1 Qc7 14. Qg3 b5 15. Nf3 e5 16. dxe5 dxe5 17. Rd2 Bb7 18. Ng5 h6 {½-½ Lichtmannecker,D (2083)-Meissner,F (2375) Bayern-chI Bank Hofmann 25th 2022 (1)}) 13. a4 {[%emt 0:06:42]} b6 {[%emt 0:06:20]} 14. Qg3 {[%emt 0:08:38]} Rb8 {[%emt 0:14:20]} 15. Nf3 {[%emt 0:04:28]} Bb7 {[%emt 0:04:06]} 16. Qh4 {[%emt 0:02:30]} e5 {[%emt 0:04:32]} 17. Bh6 {[%emt 0:06:39]} f6 {[%emt 0:03:45]} 18. Rad1 {[%emt 0:04:08]} Kh8 {[%emt 0:03:17]} 19. Qh3 {[%emt 0:06:11]} Bxh6 {[%emt 0:01:23]} 20. Qxh6 {[%emt 0:00:03]} Rfe8 {[%emt 0:00:51]} 21. dxe5 {[%emt 0:01:14]} dxe5 {[%emt 0:03:11]} 22. h4 {[%emt 0:05:25]} Nf8 {[%emt 0:02:01]} 23. h5 {[%emt 0:00:15]} Qg7 {[%emt 0:02:54]} 24. Qxg7+ {[%emt 0:06:10]} Kxg7 {[%emt 0:00:02]} 25. hxg6 {[%emt 0:00:45]} hxg6 {[%emt 0:00:05]} 26. Nd2 {[%emt 0:00:03]} Red8 {[%emt 0:05:09]} 27. f3 {[%emt 0:01:30]} Bc6 {[%emt 0:00:54]} 28. Nc4 {[%emt 0:05:22]} b5 {[%emt 0:04:30]} 29. axb5 {[%emt 0:00:57]} axb5 {[%emt 0:00:43]} 30. Rxd8 {[%emt 0:00:57]} Rxd8 {[%emt 0:00:01]} 31. Na5 {[%emt 0:00:08]} Be8 {[%emt 0:02:39]} 32. Nb7 {[%emt 0:01:32]} Rd2 {[%emt 0:00:02]} 33. Nxc5 {[%emt 0:04:12]} Rxb2 {[%emt 0:00:01]} 34. Ra1 {[%emt 0:00:07]} Rc2 {[%emt 0:00:43]} 35. Ra3 {[%emt 0:01:40]} Kg8 {[%emt 0:01:33]} 36. Nd3 {[%emt 0:00:56]} Nd7 {[%emt 0:01:11]} (36... Ne6 $11) 37. Nb4 $14 {[%emt 0:01:22]} Rc1 {[%emt 0:00:01]} 38. Nd5 {[%emt 0:00:48]} Bf7 {[%emt 0:00:32]} 39. Kf2 {[%emt 0:01:16]} Rb1 {[%emt 0:00:58]} 40. Nb4 {[%emt 0:00:00]} Rb2+ {[%emt 0:00:00]} 41. Kg3 {[%emt 0:04:30]} f5 {[%emt 0:05:03]} (41... Nc5 $14) 42. Ra8+ {[%emt 0:02:03]} ({Don't play} 42. Bxb5 $6 Nf6 $11) (42. Ra7 $16 Nc5 43. exf5 (43. Bxb5 fxe4 44. Rc7 Ne6 $16) 43... gxf5 44. Nc6) 42... Kg7 $14 {[%emt 0:01:30]} 43. Ra7 {[%emt 0:00:01]} Nc5 {[%emt 0:03:22]} 44. Bxb5 {[%emt 0:03:42]} Kf6 $1 {[%emt 0:01:34]} 45. Bc6 {[%emt 0:02:19]} Bc4 {[%emt 0:04:02]} 46. Nd5+ {[%emt 0:04:50]} Kg5 {[%emt 0:03:42]} 47. exf5 {[%emt 0:03:09]} gxf5 {[%emt 0:00:40]} 48. Kh2 {[%emt 0:06:40]} Bxd5 {[%emt 0:01:48]} 49. Bxd5 {[%emt 0:00:10]} Rc2 {[%emt 0:00:21]} 50. c4 {[%emt 0:05:10]} Nd3 {[%emt 0:00:34]} 51. Ra8 {[%emt 0:03:17]} Nf4 {[%emt 0:01:09]} 52. Rg8+ {[%emt 0:00:07]} Kf6 {[%emt 0:00:17]} 53. Rf8+ {[%emt 0:00:11]} Kg6 {[%emt 0:00:11]} 54. Rg8+ {[%emt 0:02:22]} Kf6 {[%emt 0:01:28]} 55. Kg1 {[%emt 0:01:20]} Rc1+ {[%emt 0:00:21]} 1/2-1/2

[Event "Azerbaijan Men Championship 2024"]
[Site "Baku"]
[Date "2024.04.17"]
[Round "7.2"]
[White "Babazada, Khazar"]
[Black "Suleymanli, Aydin"]
[Result "1-0"]
[ECO "C84"]
[WhiteElo "2474"]
[BlackElo "2607"]
[Annotator "TA"]
[PlyCount "63"]
[EventDate "2024.04.11"]
[EventType "swiss"]
[EventCountry "AZE"]
[SourceTitle "playchess.com"]
[Source "ChessBase"]
[SourceQuality "1"]
[TimeControl "40/5400+30:1800+30"]

{[%evp 13,63,17,17,0,0,0,5,13,17,0,32,28,32,28,64,55,66,70,83,79,90,68,78,73,70,47,124,110,127,131,162,99,133,104,108,106,111,111,150,156,151,165,151,157,497,486,766,742,2881,3947,2352,2198]} 1. e4 {[%emt 0:00:07]} e5 {[%emt 0:00:06]} 2. Nf3 {[%emt 0:00:06]} Nc6 {[%emt 0:00:04]} 3. Bb5 {[%emt 0:00:23][%cal Bf1b5,Bb5a4,Ba4b3,Bb3a2][%mdl 32]} a6 {[%emt 0:00:04]} 4. Ba4 {[%emt 0:00:03]} Nf6 {[%emt 0:00:17]} 5. O-O {[%emt 0:00:12]} Be7 {[%emt 0:00:05]} 6. d3 {[%emt 0:00:09]} b5 {[%emt 0:00:10]} 7. Bb3 {[%emt 0:00:07]} d6 {[%emt 0:00:03]} 8. a3 {[%emt 0:00:03]} Na5 {[%emt 0:03:56]} 9. Ba2 {[%emt 0:00:08]} c5 {[%emt 0:00:09]} 10. Nc3 {[%emt 0:00:05] The position is equal.} O-O {[%emt 0:05:13]} 11. Nd5 {[%emt 0:00:12]} Nc6 {[%emt 0:07:19]} 12. b4 {[%emt 0:06:12]} Rb8 {[%emt 0:09:42]} 13. c3 {[%emt 0:00:42]} Be6 {[%emt 0:20:28]} 14. Be3 {[%emt 0:03:21]} Nd7 {[%emt 0:01:00]} 15. Qd2 {[%emt 0:17:42]} Kh8 {[%emt 0:12:13]} 16. d4 {[%emt 0:04:41] Nxe7 is the strong threat.} Bg4 {[%emt 0:17:04]} 17. dxc5 {[%emt 0:13:42]} dxc5 {[%emt 0:02:04]} 18. Nxe7 {[%emt 0:01:33]} Qxe7 {[%emt 0:01:40]} 19. Bd5 {[%emt 0:00:29]} Qf6 {[%emt 0:05:14]} ({Black should try} 19... Nd8 $14) 20. Ne1 {[%emt 0:08:56] [#] Threatens to win with f3.} (20. Bxc5 $6 Nxc5 21. bxc5 Bxf3 22. gxf3 Rfc8 $14) (20. bxc5 $6 Bxf3 21. gxf3 Rbc8 $14) 20... Rfc8 {[%emt 0:06:56]} 21. f4 {[%emt 0:01:00][%cal Bf2f4,Bf4e5][%mdl 32]} (21. Bxc5 Nxc5 22. bxc5 Ne7 $16) 21... Be6 {[%emt 0:03:20]} 22. Nd3 {[%emt 0:04:47]} ({Don't play} 22. bxc5 Na5 $16) (22. Nf3 $18) 22... c4 $16 {[%emt 0:01:35]} 23. Nxe5 {[%emt 0:09:43]} Ndxe5 {[%emt 0:00:02]} 24. fxe5 {[%emt 0:00:06]} Qg6 {[%emt 0:00:03]} 25. a4 {[%emt 0:00:19] aiming for axb5.} Rd8 {[%emt 0:03:00] [#]} 26. axb5 $1 {[%emt 0:00:23]} axb5 {[%emt 0:00:01] Black is weak on the dark squares} 27. Ra6 {[%emt 0:01:09]} Ne7 {[%emt 0:00:10][%cal Re7d5]} 28. Bg5 {[%emt 0:07:13] White is more active.} Nxd5 {[%emt 0:00:04] Loses the game.} (28... Rxd5 $16 {is a better chance.} 29. exd5 Nxd5) 29. Bxd8 $18 {[%emt 0:00:18] White is clearly winning.} ({Weaker is} 29. exd5 Rxd5 $16) 29... Ne3 {[%emt 0:01:56]} (29... Nxb4 $142 30. cxb4 h6) 30. Rf3 {[%emt 0:04:36]} Nxg2 {[%emt 0:00:42]} 31. Qd6 {[%emt 0:01:03][%cal Rd6f8]} h6 {[%emt 0:00:39]} 32. Rg3 {[%emt 0:00:04] Weighted Error Value: White=0.10 (very precise) /Black=0.40.  Loses game:     	---       	Black=1      Mistake:       	White=1     	Black=2      Inaccurate:     	---       	Black=4      OK:         	White=11    	Black=6      Best:        	White=2     	Black=1} ({Not} 32. Qxb8 Nf4+ 33. Bg5+ Kh7 $16) 1-0

[Event "Azerbaijan Men Championship 2024"]
[Site "Baku"]
[Date "2024.04.17"]
[Round "7.3"]
[White "Iskandarov, Misratdin"]
[Black "Sadikhov, Ulvi"]
[Result "1/2-1/2"]
[ECO "D87"]
[WhiteElo "2538"]
[BlackElo "2497"]
[Annotator "TA"]
[PlyCount "80"]
[EventDate "2024.04.11"]
[EventType "swiss"]
[EventCountry "AZE"]
[SourceTitle "playchess.com"]
[Source "ChessBase"]
[SourceQuality "1"]
[TimeControl "40/5400+30:1800+30"]

{[%evp 30,80,35,30,63,0,0,0,4,0,0,-25,-20,-27,0,0,0,0,0,0,0,0,0,0,0,0,0,-55,-38,-28,-31,-39,-13,-97,-8,-8,-8,-8,0,0,0,0,0,0,0,0,0,0,0,0,0,0,0]} 1. d4 {[%emt 0:00:04]} Nf6 {[%emt 0:00:10]} 2. c4 {[%emt 0:00:07]} g6 {[%emt 0:00:06]} 3. Nc3 {[%emt 0:00:12]} d5 {[%emt 0:00:10]} 4. cxd5 {[%emt 0:01:15]} Nxd5 {[%emt 0:00:06]} 5. e4 {[%emt 0:00:29]} Nxc3 {[%emt 0:00:07]} 6. bxc3 {[%emt 0:00:03]} Bg7 {[%emt 0:00:07]} 7. Bc4 {[%emt 0:01:19]} c5 {[%emt 0:00:18]} 8. Ne2 {[%emt 0:00:06]} Nc6 {[%emt 0:00:31]} 9. Be3 {[%emt 0:01:08]} O-O {[%emt 0:00:09]} 10. O-O {[%emt 0:06:43]} Bg4 {[%emt 0:00:14]} 11. f3 {[%emt 0:00:33]} Na5 {[%emt 0:00:04]} 12. Bxf7+ {[%emt 0:08:51]} Rxf7 {[%emt 0:00:15]} 13. fxg4 {[%emt 0:00:02]} Rxf1+ {[%emt 0:00:06]} 14. Kxf1 {[%emt 0:01:49]} Qd6 {[%emt 0:00:06]} 15. Kg1 {[%emt 0:01:15]} Qe6 {[%emt 0:05:34]} 16. Qd3 {[%emt 0:01:39]} Qc4 {[%emt 0:08:01]} 17. Rd1 {[%emt 0:14:30]} (17. Qxc4+ $1 $14 Nxc4 18. Bf2) 17... Qxa2 {[%emt 0:08:13]} 18. dxc5 {[%emt 0:21:42]} Qc4 {[%emt 0:03:43]} 19. Qc2 {[%emt 0:00:16]} Nc6 {[%emt 0:07:01]} 20. Nf4 {[%emt 0:08:23]} e6 {[%emt 0:11:42][%cal Oa7a5]} 21. Qb1 {[%emt 0:05:26]} Qxc3 {[%emt 0:08:28]} 22. Bf2 {[%emt 0:04:37]} (22. Qxb7 $2 Qxe3+ 23. Kh1 Rd8 $19) 22... Bd4 {[%emt 0:14:00] [#] Strongly threatening ...Bxf2+.} 23. Qxb7 {[%emt 0:13:24]} (23. Nxe6 $2 Bxf2+ 24. Kh1 Nb4 $19 (24... Bxc5 25. Qxb7 Rf8 26. e5 $11)) 23... Bxf2+ {[%emt 0:02:46]} 24. Kxf2 {[%emt 0:00:13]} Qxc5+ {[%emt 0:13:30]} 25. Kg3 {[%emt 0:00:07] Dancing on a razor blade.} Rd8 {[%emt 0:10:04]} 26. Rxd8+ {[%emt 0:00:51]} Nxd8 $11 {[%emt 0:00:02][%mdl 4096] Endgame. KQN-KQN} 27. Qb8 {[%emt 0:00:48]} Qb6 {[%emt 0:01:25]} 28. Qe5 {[%emt 0:00:30]} (28. Qxb6 $11 axb6 29. Kf3) 28... Nf7 {[%emt 0:01:35]} (28... Qe3+ {with more complications.} 29. Kh4 Nf7 30. Qb8+ Kg7) 29. Qc3 {[%emt 0:00:22] Against Qe3+} Qb8 {[%emt 0:01:10] Threatens to win with ...g5.} 30. h4 {[%emt 0:00:37]} h6 {[%emt 0:00:36] aiming for ...g5.} 31. g5 {[%emt 0:01:06] [#]} (31. Kf3 $1 $11 {remains equal.}) 31... hxg5 {[%emt 0:02:02]} (31... Nxg5 $1 $17 32. Qc2 (32. hxg5 hxg5 33. e5 gxf4+ 34. Kxf4 Qd8 $17) 32... Qe5 33. Qc8+ (33. hxg5 hxg5 34. Qd2 Qxf4+ 35. Qxf4 gxf4+ 36. Kxf4 Kg7 $19) 33... Kg7 34. Qd7+ (34. hxg5 $2 {is the wrong capture.} hxg5 35. Qb7+ Kf6 $19) 34... Nf7 35. Qxe6 Qxe6 36. Nxe6+ Kf6) 32. hxg5 {[%emt 0:00:02] The position is equal.} Nxg5 {[%emt 0:02:15]} 33. Kg4 $1 {[%emt 0:00:37][%csl LRg5,LRg6]} Nxe4 {[%emt 0:01:00]} 34. Qd4 {[%emt 0:00:06]} Qb7 {[%emt 0:00:33]} 35. Nxg6 {[%emt 0:02:40]} Qg7 {[%emt 0:01:10]} 36. Qxe4 {[%emt 0:01:04]} Kh7 $1 {[%emt 0:00:07]} 37. Kg5 {[%emt 0:00:45] White threatens Qh4+ and mate.} Qh6+ {[%emt 0:00:06]} 38. Kf6 {[%emt 0:00:04]} Qg7+ {[%emt 0:00:02]} 39. Kg5 {[%emt 0:00:16]} Qh6+ {[%emt 0:00:05]} 40. Kf6 {[%emt 0:00:00] White wants to mate with Qb7+.} Qg7+ {[%emt 0:00:00] Weighted Error Value: White=0.15 (very precise) /Black=0.10 (very precise) .  Mistake:       	White=3     	Black=1      Inaccurate:     	---       	Black=2      OK:         	White=11    	Black=11     Best:        	White=3     	Black=1      Strong:       	White=1     	Black=1} 1/2-1/2